[Event "Titled Tuesday Blitz January 10 Early 2023"]
[White "Fiorito, Francisco"]
[Black "Rakhmanov, Aleksandr"]
[WhiteFideId "180165"]
[BlackFideId "4173708"]
[WhiteElo "2557"]
[BlackElo "2788"]
[Result "0-1"]
[Round "04"]
[TimeControl "180+1"]
[Date "2023.01.10"]
[WhiteClock "0:00:03"]
[BlackClock "0:00:10"]

1. e4 {[%clk 0:03:00]}  c5 {[%clk 0:03:00]} 2. Nf3 {[%clk 0:03:00]}  Nf6 {[%clk 0:02:59]} 3. e5 {[%clk 0:02:57]}  Nd5 {[%clk 0:02:59]} 4. Nc3 {[%clk 0:02:57]}  Nxc3 {[%clk 0:02:58]} 5. dxc3 {[%clk 0:02:58]}  Nc6 {[%clk 0:02:58]} 6. Bd3 {[%clk 0:02:55]}  e6 {[%clk 0:02:57]} 7. O-O {[%clk 0:02:55]}  Qc7 {[%clk 0:02:56]} 8. Qe2 {[%clk 0:02:52]}  h6 {[%clk 0:02:56]} 9. Re1 {[%clk 0:02:40]}  b6 {[%clk 0:02:56]} 10. Nd2 {[%clk 0:02:31]}  d5 {[%clk 0:02:55]} 11. exd6 {[%clk 0:02:30]}  Bxd6 {[%clk 0:02:56]} 12. h3 {[%clk 0:02:27]}  Bb7 {[%clk 0:02:53]} 13. Nc4 {[%clk 0:02:18]}  Bf4 {[%clk 0:02:35]} 14. Qg4 {[%clk 0:01:50]}  Bxc1 {[%clk 0:02:31]} 15. Raxc1 {[%clk 0:01:51]}  O-O-O {[%clk 0:02:28]} 16. a4 {[%clk 0:01:44]}  g5 {[%clk 0:02:19]} 17. Rcd1 {[%clk 0:01:14]}  h5 {[%clk 0:02:12]} 18. Qxg5 {[%clk 0:01:02]}  Rhg8 {[%clk 0:02:04]} 19. Qe3 {[%clk 0:00:59]}  Na5 {[%clk 0:01:37]} 20. f3 {[%clk 0:00:07]}  Qg3 {[%clk 0:00:30]} 21. Qf2 {[%clk 0:00:01]}  Qxf3 {[%clk 0:00:21]} 22. Qxf3 {[%clk 0:00:02]}  Bxf3 {[%clk 0:00:21]} 23. Nxa5 {[%clk 0:00:03]}  Bxd1 {[%clk 0:00:16]} 24. Nc6 {[%clk 0:00:03]}  Bf3 {[%clk 0:00:13]} 25. Ne7+ {[%clk 0:00:03]}  Kc7 {[%clk 0:00:14]} 26. Nxg8 {[%clk 0:00:03]}  Rxg8 {[%clk 0:00:14]} 27. Bf1 {[%clk 0:00:03]}  Bc6 {[%clk 0:00:13]} 28. b3 {[%clk 0:00:02]}  h4 {[%clk 0:00:12]} 29. Kf2 {[%clk 0:00:03]}  Rg3 {[%clk 0:00:11]} 30. Re3 {[%clk 0:00:02]}  Rxe3 {[%clk 0:00:11]} 31. Kxe3 {[%clk 0:00:03]}  e5 {[%clk 0:00:12]} 32. Kf2 {[%clk 0:00:03]}  f5 {[%clk 0:00:09]} 33. g3 {[%clk 0:00:03]}  hxg3+ {[%clk 0:00:09]} 34. Kxg3 {[%clk 0:00:04]}  Kd6 {[%clk 0:00:09]} 35. h4 {[%clk 0:00:04]}  Ke7 {[%clk 0:00:10]} 36. Be2 {[%clk 0:00:04]}  Kf6 {[%clk 0:00:10]} 37. b4 {[%clk 0:00:04]}  f4+ {[%clk 0:00:10]} 38. Kf2 {[%clk 0:00:04]}  Bxa4 {[%clk 0:00:10]} 39. bxc5 {[%clk 0:00:03]}  bxc5 {[%clk 0:00:10]} 40. Kf3 {[%clk 0:00:03]}  Bxc2 {[%clk 0:00:10]} 41. Kg4 {[%clk 0:00:03]}  Bf5+ {[%clk 0:00:10]} 42. Kh5 {[%clk 0:00:03]}  e4 {[%clk 0:00:10]} 0-1


[Site "https://www.chess.com"]

[Event "Titled Tuesday Blitz January 10 Early 2023"]
[White "Bryakin, Mikhail"]
[Black "Al-Tarboush, Ward"]
[WhiteFideId "4165314"]
[BlackFideId "7601450"]
[WhiteElo "2781"]
[BlackElo "2545"]
[Result "1-0"]
[Round "04"]
[TimeControl "180+1"]
[Date "2023.01.10"]
[WhiteClock "0:00:03"]
[BlackClock "0:00:02"]

1. c4 {[%clk 0:02:55]}  c5 {[%clk 0:02:59]} 2. Nf3 {[%clk 0:02:52]}  Nc6 {[%clk 0:02:59]} 3. g3 {[%clk 0:02:52]}  g6 {[%clk 0:02:59]} 4. Bg2 {[%clk 0:02:52]}  Bg7 {[%clk 0:02:58]} 5. O-O {[%clk 0:02:53]}  Nh6 {[%clk 0:02:56]} 6. Nc3 {[%clk 0:02:50]}  Nf5 {[%clk 0:02:56]} 7. e3 {[%clk 0:02:43]}  O-O {[%clk 0:02:54]} 8. b3 {[%clk 0:02:39]}  a6 {[%clk 0:02:54]} 9. Bb2 {[%clk 0:02:40]}  b5 {[%clk 0:02:54]} 10. Rb1 {[%clk 0:02:30]}  bxc4 {[%clk 0:02:50]} 11. bxc4 {[%clk 0:02:29]}  Rb8 {[%clk 0:02:47]} 12. Na4 {[%clk 0:02:22]}  Bxb2 {[%clk 0:02:35]} 13. Rxb2 {[%clk 0:02:13]}  Rxb2 {[%clk 0:02:34]} 14. Nxb2 {[%clk 0:02:14]}  Qa5 {[%clk 0:02:35]} 15. Qb3 {[%clk 0:02:07]}  d6 {[%clk 0:02:28]} 16. Qa4 {[%clk 0:01:37]}  Bd7 {[%clk 0:02:24]} 17. Ng5 {[%clk 0:01:23]}  Qxd2 {[%clk 0:02:16]} 18. Bxc6 {[%clk 0:01:16]}  Bxc6 {[%clk 0:02:17]} 19. Qxc6 {[%clk 0:01:16]}  Qxb2 {[%clk 0:02:17]} 20. Qxa6 {[%clk 0:01:15]}  Rb8 {[%clk 0:02:11]} 21. h4 {[%clk 0:01:03]}  Qc2 {[%clk 0:02:08]} 22. Qa7 {[%clk 0:00:20]}  Rb2 {[%clk 0:02:05]} 23. Qa8+ {[%clk 0:00:20]}  Kg7 {[%clk 0:02:05]} 24. Qe8 {[%clk 0:00:19]}  Qxc4 {[%clk 0:01:55]} 25. e4 {[%clk 0:00:19]}  Nd4 {[%clk 0:01:39]} 26. Qxe7 {[%clk 0:00:18]}  h6 {[%clk 0:01:24]} 27. Nh3 {[%clk 0:00:12]}  Ne2+ {[%clk 0:01:24]} 28. Kg2 {[%clk 0:00:12]}  Nxg3 {[%clk 0:01:23]} 29. Re1 {[%clk 0:00:10]}  Ne2 {[%clk 0:01:19]} 30. h5 {[%clk 0:00:05]}  g5 {[%clk 0:00:53]} 31. Nxg5 {[%clk 0:00:04]}  Nf4+ {[%clk 0:00:53]} 32. Kf3 {[%clk 0:00:04]}  Qd3+ {[%clk 0:00:45]} 33. Re3 {[%clk 0:00:04]}  Qd1+ {[%clk 0:00:44]} 34. Kxf4 {[%clk 0:00:05]}  Rxf2+ {[%clk 0:00:43]} 35. Nf3 {[%clk 0:00:06]}  Qg1 {[%clk 0:00:38]} 36. Qh4 {[%clk 0:00:03]}  c4 {[%clk 0:00:33]} 37. Qg3+ {[%clk 0:00:03]}  Qxg3+ {[%clk 0:00:33]} 38. Kxg3 {[%clk 0:00:04]}  Rxa2 {[%clk 0:00:33]} 39. Rc3 {[%clk 0:00:05]}  Ra4 {[%clk 0:00:31]} 40. Kf4 {[%clk 0:00:05]}  Kf6 {[%clk 0:00:30]} 41. Nd2 {[%clk 0:00:05]}  Ra5 {[%clk 0:00:30]} 42. Nxc4 {[%clk 0:00:04]}  Rxh5 {[%clk 0:00:29]} 43. Nxd6 {[%clk 0:00:04]}  Rh4+ {[%clk 0:00:29]} 44. Kg3 {[%clk 0:00:05]}  Rh1 {[%clk 0:00:28]} 45. Rc5 {[%clk 0:00:05]}  Rg1+ {[%clk 0:00:25]} 46. Kf2 {[%clk 0:00:05]}  Rd1 {[%clk 0:00:24]} 47. Nf5 {[%clk 0:00:05]}  h5 {[%clk 0:00:23]} 48. Ne3 {[%clk 0:00:04]}  Rd4 {[%clk 0:00:23]} 49. Kf3 {[%clk 0:00:05]}  Kg6 {[%clk 0:00:23]} 50. Rc6+ {[%clk 0:00:04]}  Kg5 {[%clk 0:00:20]} 51. Rc5+ {[%clk 0:00:05]}  Kg6 {[%clk 0:00:20]} 52. Kf4 {[%clk 0:00:04]}  f6 {[%clk 0:00:17]} 53. Rc7 {[%clk 0:00:03]}  Rd2 {[%clk 0:00:15]} 54. Nf5 {[%clk 0:00:03]}  h4 {[%clk 0:00:11]} 55. Rg7+ {[%clk 0:00:03]}  Kh5 {[%clk 0:00:11]} 56. Rh7+ {[%clk 0:00:03]}  Kg6 {[%clk 0:00:11]} 57. Rxh4 {[%clk 0:00:04]}  Rf2+ {[%clk 0:00:12]} 58. Ke3 {[%clk 0:00:04]}  Ra2 {[%clk 0:00:12]} 59. Rh8 {[%clk 0:00:04]}  Rb2 {[%clk 0:00:11]} 60. Rg8+ {[%clk 0:00:04]}  Kf7 {[%clk 0:00:12]} 61. Rg7+ {[%clk 0:00:04]}  Kf8 {[%clk 0:00:12]} 62. Ra7 {[%clk 0:00:03]}  Rh2 {[%clk 0:00:12]} 63. Nd4 {[%clk 0:00:03]}  Rb2 {[%clk 0:00:11]} 64. Kf4 {[%clk 0:00:04]}  Rf2+ {[%clk 0:00:10]} 65. Ke3 {[%clk 0:00:03]}  Rb2 {[%clk 0:00:10]} 66. Ne6+ {[%clk 0:00:04]}  Ke8 {[%clk 0:00:10]} 67. Nf4 {[%clk 0:00:04]}  Kf8 {[%clk 0:00:09]} 68. Nd5 {[%clk 0:00:05]}  Rb3+ {[%clk 0:00:02]} 69. Kf4 {[%clk 0:00:05]}  Rb2 {[%clk 0:00:01]} 70. Nxf6 {[%clk 0:00:06]}  Rf2+ {[%clk 0:00:02]} 71. Kg5 {[%clk 0:00:04]}  Rf5+ {[%clk 0:00:02]} 72. Kg6 {[%clk 0:00:04]}  Rg5+ {[%clk 0:00:03]} 73. Kh6 {[%clk 0:00:05]}  Rg6+ {[%clk 0:00:03]} 74. Kh5 {[%clk 0:00:04]}  Rxf6 {[%clk 0:00:03]} 75. Kg5 {[%clk 0:00:04]}  Rf1 {[%clk 0:00:03]} 76. Rb7 {[%clk 0:00:04]}  Ke8 {[%clk 0:00:03]} 77. Kg4 {[%clk 0:00:05]}  Kf8 {[%clk 0:00:04]} 78. Rc7 {[%clk 0:00:05]}  Ke8 {[%clk 0:00:04]} 79. Rc5 {[%clk 0:00:06]}  Ke7 {[%clk 0:00:04]} 80. Rf5 {[%clk 0:00:06]}  Rg1+ {[%clk 0:00:05]} 81. Kf4 {[%clk 0:00:06]}  Ra1 {[%clk 0:00:05]} 82. Rh5 {[%clk 0:00:05]}  Ke6 {[%clk 0:00:05]} 83. Rh6+ {[%clk 0:00:06]}  Ke7 {[%clk 0:00:05]} 84. Kf5 {[%clk 0:00:06]}  Ra5+ {[%clk 0:00:04]} 85. e5 {[%clk 0:00:06]}  Ke8 {[%clk 0:00:02]} 86. Kf6 {[%clk 0:00:05]}  Ra1 {[%clk 0:00:01]} 87. Rh8+ {[%clk 0:00:05]}  Kd7 {[%clk 0:00:01]} 88. e6+ {[%clk 0:00:06]}  Kc7 {[%clk 0:00:02]} 89. e7 {[%clk 0:00:02]}  Rf1+ {[%clk 0:00:02]} 90. Kg5 {[%clk 0:00:03]}  Rg1+ {[%clk 0:00:02]} 91. Kf4 {[%clk 0:00:03]} 1-0


[Site "https://www.chess.com"]

[Event "Titled Tuesday Blitz January 10 Early 2023"]
[White "Samunenkov, Ihor"]
[Black "Mkrtchian, Lilit"]
[WhiteFideId "14187086"]
[BlackFideId "13300601"]
[WhiteElo "2762"]
[BlackElo "2530"]
[Result "1-0"]
[Round "04"]
[TimeControl "180+1"]
[Date "2023.01.10"]
[WhiteClock "0:00:02"]
[BlackClock "0:00:02"]

1. e4 {[%clk 0:03:00]}  e6 {[%clk 0:02:59]} 2. d4 {[%clk 0:02:59]}  d5 {[%clk 0:03:00]} 3. Nd2 {[%clk 0:02:59]}  Be7 {[%clk 0:02:59]} 4. Bd3 {[%clk 0:02:58]}  c5 {[%clk 0:02:57]} 5. dxc5 {[%clk 0:02:58]}  Nf6 {[%clk 0:02:58]} 6. Qe2 {[%clk 0:02:55]}  O-O {[%clk 0:02:57]} 7. Ngf3 {[%clk 0:02:55]}  a5 {[%clk 0:02:57]} 8. O-O {[%clk 0:02:30]}  Na6 {[%clk 0:02:56]} 9. c4 {[%clk 0:02:28]}  Nxc5 {[%clk 0:02:51]} 10. cxd5 {[%clk 0:02:24]}  Nxd3 {[%clk 0:01:59]} 11. Qxd3 {[%clk 0:02:23]}  exd5 {[%clk 0:01:59]} 12. e5 {[%clk 0:02:23]}  Nd7 {[%clk 0:01:51]} 13. Nb3 {[%clk 0:02:06]}  a4 {[%clk 0:01:44]} 14. Nbd4 {[%clk 0:02:03]}  Nc5 {[%clk 0:01:45]} 15. Qe2 {[%clk 0:01:42]}  Bg4 {[%clk 0:01:41]} 16. Rd1 {[%clk 0:01:41]}  Re8 {[%clk 0:01:29]} 17. h3 {[%clk 0:01:38]}  Bh5 {[%clk 0:01:29]} 18. Be3 {[%clk 0:01:26]}  Ne6 {[%clk 0:01:14]} 19. Qb5 {[%clk 0:01:20]}  Nxd4 {[%clk 0:01:08]} 20. Nxd4 {[%clk 0:01:20]}  Bxd1 {[%clk 0:01:07]} 21. Rxd1 {[%clk 0:01:19]}  Bf8 {[%clk 0:00:56]} 22. Qxb7 {[%clk 0:01:13]}  Rb8 {[%clk 0:00:49]} 23. Qa7 {[%clk 0:01:12]}  Rxb2 {[%clk 0:00:47]} 24. Qxa4 {[%clk 0:01:11]}  Qa8 {[%clk 0:00:44]} 25. Qd7 {[%clk 0:00:59]}  Rxe5 {[%clk 0:00:17]} 26. Rc1 {[%clk 0:00:44]}  Re7 {[%clk 0:00:15]} 27. Qf5 {[%clk 0:00:35]}  Rxa2 {[%clk 0:00:09]} 28. Rc8 {[%clk 0:00:31]}  Ra1+ {[%clk 0:00:10]} 29. Kh2 {[%clk 0:00:32]}  Qb7 {[%clk 0:00:09]} 30. Bg5 {[%clk 0:00:15]}  Rc7 {[%clk 0:00:08]} 31. Re8 {[%clk 0:00:07]}  Ra8 {[%clk 0:00:08]} 32. Re1 {[%clk 0:00:05]}  Rc4 {[%clk 0:00:07]} 33. Nf3 {[%clk 0:00:04]}  Qc7+ {[%clk 0:00:07]} 34. g3 {[%clk 0:00:03]}  Rc2 {[%clk 0:00:07]} 35. Be3 {[%clk 0:00:02]}  Rc8 {[%clk 0:00:06]} 36. Nd4 {[%clk 0:00:03]}  Ra2 {[%clk 0:00:05]} 37. Qxd5 {[%clk 0:00:03]}  Ra5 {[%clk 0:00:04]} 38. Qf3 {[%clk 0:00:02]}  Ra2 {[%clk 0:00:03]} 39. Rb1 {[%clk 0:00:03]}  Qd7 {[%clk 0:00:03]} 40. Rb7 {[%clk 0:00:03]}  Rc7 {[%clk 0:00:03]} 41. Rb8 {[%clk 0:00:03]}  Rc8 {[%clk 0:00:03]} 42. Rb5 {[%clk 0:00:03]}  Qe7 {[%clk 0:00:03]} 43. Nf5 {[%clk 0:00:02]}  Qf6 {[%clk 0:00:02]} 44. Qg4 {[%clk 0:00:02]} 1-0


[Site "https://www.chess.com"]

[Event "Titled Tuesday Blitz January 10 Early 2023"]
[White "Martynov, Pavel"]
[Black "Cherniaiev, Tykhon"]
[WhiteFideId "4101260"]
[BlackFideId "14182360"]
[WhiteElo "2524"]
[BlackElo "2741"]
[Result "0-1"]
[Round "04"]
[TimeControl "180+1"]
[Date "2023.01.10"]
[WhiteClock "0:00:01"]
[BlackClock "0:00:07"]

1. e4 {[%clk 0:03:00]}  e5 {[%clk 0:02:58]} 2. Nf3 {[%clk 0:03:00]}  Nc6 {[%clk 0:02:58]} 3. Bb5 {[%clk 0:03:00]}  Nf6 {[%clk 0:02:58]} 4. d3 {[%clk 0:03:00]}  Bc5 {[%clk 0:02:57]} 5. c3 {[%clk 0:03:01]}  O-O {[%clk 0:02:48]} 6. Nbd2 {[%clk 0:02:56]}  a6 {[%clk 0:02:45]} 7. Ba4 {[%clk 0:02:55]}  d5 {[%clk 0:02:44]} 8. h3 {[%clk 0:02:44]}  b5 {[%clk 0:02:29]} 9. Bc2 {[%clk 0:02:43]}  Bb7 {[%clk 0:02:25]} 10. O-O {[%clk 0:02:32]}  Re8 {[%clk 0:02:21]} 11. Re1 {[%clk 0:02:31]}  Bb6 {[%clk 0:02:10]} 12. Qe2 {[%clk 0:02:26]}  b4 {[%clk 0:02:07]} 13. Nf1 {[%clk 0:02:26]}  bxc3 {[%clk 0:02:07]} 14. bxc3 {[%clk 0:02:26]}  a5 {[%clk 0:02:02]} 15. Ba4 {[%clk 0:02:11]}  dxe4 {[%clk 0:01:56]} 16. dxe4 {[%clk 0:02:11]}  Qc8 {[%clk 0:01:47]} 17. Ng3 {[%clk 0:02:06]}  Rd8 {[%clk 0:01:40]} 18. Nf5 {[%clk 0:02:03]}  Bc5 {[%clk 0:01:38]} 19. Bg5 {[%clk 0:01:58]}  Ba6 {[%clk 0:01:26]} 20. Qc2 {[%clk 0:01:40]}  Bd3 {[%clk 0:01:21]} 21. Qc1 {[%clk 0:01:35]}  Nxe4 {[%clk 0:01:10]} 22. Bxc6 {[%clk 0:01:01]}  Bxf2+ {[%clk 0:00:55]} 23. Kh2 {[%clk 0:00:58]}  Qxf5 {[%clk 0:00:47]} 24. Bxd8 {[%clk 0:00:30]}  Rxd8 {[%clk 0:00:42]} 25. Bxe4 {[%clk 0:00:25]}  Bxe4 {[%clk 0:00:39]} 26. Rd1 {[%clk 0:00:25]}  Rb8 {[%clk 0:00:33]} 27. Qg5 {[%clk 0:00:23]}  Qxg5 {[%clk 0:00:28]} 28. Nxg5 {[%clk 0:00:24]}  Bg6 {[%clk 0:00:18]} 29. Nf3 {[%clk 0:00:21]}  Re8 {[%clk 0:00:16]} 30. Rd2 {[%clk 0:00:17]}  Be3 {[%clk 0:00:16]} 31. Rd7 {[%clk 0:00:16]}  e4 {[%clk 0:00:14]} 32. Nd4 {[%clk 0:00:16]}  c5 {[%clk 0:00:14]} 33. Nc6 {[%clk 0:00:15]}  Kf8 {[%clk 0:00:10]} 34. Re1 {[%clk 0:00:13]}  Bf4+ {[%clk 0:00:11]} 35. g3 {[%clk 0:00:14]}  Bg5 {[%clk 0:00:09]} 36. h4 {[%clk 0:00:12]}  Bf6 {[%clk 0:00:09]} 37. Re3 {[%clk 0:00:12]}  h5 {[%clk 0:00:08]} 38. Rb7 {[%clk 0:00:09]}  a4 {[%clk 0:00:08]} 39. Rb8 {[%clk 0:00:09]}  Rxb8 {[%clk 0:00:08]} 40. Nxb8 {[%clk 0:00:10]}  Ke7 {[%clk 0:00:08]} 41. Na6 {[%clk 0:00:09]}  Kd6 {[%clk 0:00:08]} 42. c4 {[%clk 0:00:08]}  Kc6 {[%clk 0:00:07]} 43. Nb8+ {[%clk 0:00:07]}  Kc7 {[%clk 0:00:06]} 44. Na6+ {[%clk 0:00:08]}  Kd6 {[%clk 0:00:04]} 45. Re1 {[%clk 0:00:05]}  Bd4 {[%clk 0:00:05]} 46. Kg2 {[%clk 0:00:05]}  e3 {[%clk 0:00:05]} 47. Rd1 {[%clk 0:00:03]}  Bc2 {[%clk 0:00:05]} 48. Rc1 {[%clk 0:00:03]}  Be4+ {[%clk 0:00:05]} 49. Kf1 {[%clk 0:00:03]}  Bd3+ {[%clk 0:00:05]} 50. Kg2 {[%clk 0:00:03]}  e2 {[%clk 0:00:05]} 51. Nb8 {[%clk 0:00:02]}  Be4+ {[%clk 0:00:05]} 52. Kh2 {[%clk 0:00:02]}  Bf2 {[%clk 0:00:06]} 53. Na6 {[%clk 0:00:01]}  e1=Q {[%clk 0:00:06]} 54. Rxe1 {[%clk 0:00:01]}  Bxe1 {[%clk 0:00:07]} 0-1


[Site "https://www.chess.com"]

[Event "Titled Tuesday Blitz January 10 Early 2023"]
[White "Goldin, Alexander"]
[Black "Goryachkina, Aleksandra"]
[WhiteFideId "2019540"]
[BlackFideId "4147103"]
[WhiteElo "2515"]
[BlackElo "2471"]
[Result "0-1"]
[Round "04"]
[TimeControl "180+1"]
[Date "2023.01.10"]
[WhiteClock "0:00:01"]
[BlackClock "0:00:05"]

1. d4 {[%clk 0:03:00]}  Nf6 {[%clk 0:02:59]} 2. Nf3 {[%clk 0:03:00]}  d5 {[%clk 0:02:57]} 3. c4 {[%clk 0:03:00]}  e6 {[%clk 0:02:57]} 4. Nc3 {[%clk 0:02:59]}  Nbd7 {[%clk 0:02:56]} 5. cxd5 {[%clk 0:02:57]}  exd5 {[%clk 0:02:56]} 6. Bf4 {[%clk 0:02:56]}  c6 {[%clk 0:02:41]} 7. h3 {[%clk 0:02:54]}  Nb6 {[%clk 0:02:39]} 8. e3 {[%clk 0:02:49]}  Bf5 {[%clk 0:02:33]} 9. Nh4 {[%clk 0:02:39]}  Bg6 {[%clk 0:02:25]} 10. Nxg6 {[%clk 0:02:37]}  hxg6 {[%clk 0:02:25]} 11. Bd3 {[%clk 0:02:33]}  Bd6 {[%clk 0:02:25]} 12. Qf3 {[%clk 0:02:19]}  Bxf4 {[%clk 0:02:12]} 13. Qxf4 {[%clk 0:02:19]}  Qe7 {[%clk 0:02:12]} 14. O-O {[%clk 0:02:14]}  O-O {[%clk 0:02:09]} 15. a3 {[%clk 0:02:06]}  Rfe8 {[%clk 0:02:06]} 16. Rae1 {[%clk 0:01:58]}  Ne4 {[%clk 0:02:02]} 17. Bxe4 {[%clk 0:01:42]}  dxe4 {[%clk 0:02:03]} 18. f3 {[%clk 0:01:30]}  exf3 {[%clk 0:01:55]} 19. Qxf3 {[%clk 0:01:28]}  Rad8 {[%clk 0:01:53]} 20. Re2 {[%clk 0:01:20]}  Nd5 {[%clk 0:01:52]} 21. e4 {[%clk 0:01:12]}  Nc7 {[%clk 0:01:39]} 22. Rd1 {[%clk 0:01:08]}  Ne6 {[%clk 0:01:35]} 23. Qf2 {[%clk 0:01:07]}  Qg5 {[%clk 0:01:32]} 24. g3 {[%clk 0:00:58]}  Qh5 {[%clk 0:01:12]} 25. Kg2 {[%clk 0:00:54]}  Ng5 {[%clk 0:01:02]} 26. h4 {[%clk 0:00:46]}  Ne6 {[%clk 0:00:37]} 27. Red2 {[%clk 0:00:45]}  Qg4 {[%clk 0:00:26]} 28. Qf3 {[%clk 0:00:44]}  Qxf3+ {[%clk 0:00:26]} 29. Kxf3 {[%clk 0:00:45]}  f6 {[%clk 0:00:20]} 30. b4 {[%clk 0:00:45]}  Kf7 {[%clk 0:00:20]} 31. d5 {[%clk 0:00:44]}  cxd5 {[%clk 0:00:20]} 32. exd5 {[%clk 0:00:43]}  Nf8 {[%clk 0:00:20]} 33. Ne4 {[%clk 0:00:39]}  Re5 {[%clk 0:00:18]} 34. Nc5 {[%clk 0:00:31]}  b6 {[%clk 0:00:17]} 35. Ne4 {[%clk 0:00:29]}  Nd7 {[%clk 0:00:14]} 36. Nd6+ {[%clk 0:00:28]}  Kf8 {[%clk 0:00:14]} 37. Nc4 {[%clk 0:00:26]}  Re7 {[%clk 0:00:14]} 38. d6 {[%clk 0:00:22]}  Ne5+ {[%clk 0:00:14]} 39. Kf4 {[%clk 0:00:19]}  Re6 {[%clk 0:00:12]} 40. Ne3 {[%clk 0:00:18]}  Kf7 {[%clk 0:00:09]} 41. Rd5 {[%clk 0:00:16]}  Rd7 {[%clk 0:00:09]} 42. g4 {[%clk 0:00:14]}  Re8 {[%clk 0:00:05]} 43. g5 {[%clk 0:00:13]}  Red8 {[%clk 0:00:06]} 44. R1d4 {[%clk 0:00:09]}  Ke6 {[%clk 0:00:06]} 45. Ke4 {[%clk 0:00:01]}  Rxd6 {[%clk 0:00:06]} 46. Rxd6+ {[%clk 0:00:02]}  Rxd6 {[%clk 0:00:07]} 47. Rxd6+ {[%clk 0:00:02]}  Kxd6 {[%clk 0:00:08]} 48. gxf6 {[%clk 0:00:03]}  gxf6 {[%clk 0:00:08]} 49. Kf4 {[%clk 0:00:03]}  Ke6 {[%clk 0:00:08]} 50. Nc2 {[%clk 0:00:03]}  Nd3+ {[%clk 0:00:08]} 51. Ke4 {[%clk 0:00:03]}  Nb2 {[%clk 0:00:08]} 52. Nd4+ {[%clk 0:00:02]}  Kf7 {[%clk 0:00:07]} 53. Nb5 {[%clk 0:00:01]}  a6 {[%clk 0:00:06]} 54. Nc7 {[%clk 0:00:01]}  Nc4 {[%clk 0:00:05]} 0-1


[Site "https://www.chess.com"]

[Event "Titled Tuesday Blitz January 10 Early 2023"]
[White "Najdin, Danil"]
[Black "Ilkhomi, Jaloliddin"]
[WhiteFideId "4172426"]
[BlackFideId "14700948"]
[WhiteElo "2245"]
[BlackElo "2045"]
[Result "1-0"]
[Round "04"]
[TimeControl "180+1"]
[Date "2023.01.10"]
[WhiteClock "0:00:05"]
[BlackClock "0:00:10"]

1. e4 {[%clk 0:03:00]}  e6 {[%clk 0:02:59]} 2. d4 {[%clk 0:03:00]}  d5 {[%clk 0:02:59]} 3. Nd2 {[%clk 0:03:01]}  Nf6 {[%clk 0:02:55]} 4. e5 {[%clk 0:03:01]}  Nfd7 {[%clk 0:02:54]} 5. Bd3 {[%clk 0:03:02]}  c5 {[%clk 0:02:55]} 6. c3 {[%clk 0:03:02]}  Nc6 {[%clk 0:02:55]} 7. Ne2 {[%clk 0:03:03]}  cxd4 {[%clk 0:02:55]} 8. cxd4 {[%clk 0:03:04]}  f6 {[%clk 0:02:56]} 9. exf6 {[%clk 0:03:03]}  Qxf6 {[%clk 0:02:57]} 10. O-O {[%clk 0:03:00]}  Bd6 {[%clk 0:02:57]} 11. Nf3 {[%clk 0:03:00]}  h6 {[%clk 0:02:57]} 12. Ng3 {[%clk 0:02:56]}  O-O {[%clk 0:02:56]} 13. Re1 {[%clk 0:02:56]}  Rf7 {[%clk 0:02:54]} 14. Nh5 {[%clk 0:02:54]}  Qe7 {[%clk 0:02:54]} 15. Bg6 {[%clk 0:02:47]}  Rxf3 {[%clk 0:02:42]} 16. Qxf3 {[%clk 0:02:23]}  Nxd4 {[%clk 0:02:41]} 17. Qd3 {[%clk 0:01:59]}  Nf8 {[%clk 0:02:39]} 18. Qxd4 {[%clk 0:01:49]}  Nxg6 {[%clk 0:02:38]} 19. Nf4 {[%clk 0:01:48]}  Qf7 {[%clk 0:01:28]} 20. Nxg6 {[%clk 0:01:47]}  Qxg6 {[%clk 0:01:29]} 21. Bf4 {[%clk 0:01:48]}  Bxf4 {[%clk 0:01:07]} 22. Qxf4 {[%clk 0:01:49]}  Bd7 {[%clk 0:01:08]} 23. Rac1 {[%clk 0:01:44]}  Rf8 {[%clk 0:01:04]} 24. Qe5 {[%clk 0:01:37]}  Qf7 {[%clk 0:01:00]} 25. Re2 {[%clk 0:01:34]}  Bb5 {[%clk 0:01:00]} 26. Rd2 {[%clk 0:01:30]}  Qg6 {[%clk 0:00:36]} 27. h4 {[%clk 0:01:20]}  Kh8 {[%clk 0:00:22]} 28. Rc7 {[%clk 0:01:12]}  Bc6 {[%clk 0:00:18]} 29. Re2 {[%clk 0:01:02]}  d4 {[%clk 0:00:17]} 30. Rxc6 {[%clk 0:00:37]}  bxc6 {[%clk 0:00:16]} 31. Qxd4 {[%clk 0:00:36]}  Qf5 {[%clk 0:00:14]} 32. Qxa7 {[%clk 0:00:33]}  Rd8 {[%clk 0:00:10]} 33. Qe3 {[%clk 0:00:27]}  Rd1+ {[%clk 0:00:10]} 34. Kh2 {[%clk 0:00:26]}  Rd6 {[%clk 0:00:08]} 35. a4 {[%clk 0:00:20]}  c5 {[%clk 0:00:08]} 36. Qe5 {[%clk 0:00:15]}  Qxe5+ {[%clk 0:00:06]} 37. Rxe5 {[%clk 0:00:16]}  Rd2 {[%clk 0:00:06]} 38. b3 {[%clk 0:00:11]}  Rxf2 {[%clk 0:00:05]} 39. Rxc5 {[%clk 0:00:11]}  Rb2 {[%clk 0:00:06]} 40. Rb5 {[%clk 0:00:10]}  Kg8 {[%clk 0:00:03]} 41. a5 {[%clk 0:00:10]}  Kf7 {[%clk 0:00:03]} 42. a6 {[%clk 0:00:10]}  Ra2 {[%clk 0:00:03]} 43. Rb7+ {[%clk 0:00:11]}  Kf6 {[%clk 0:00:04]} 44. a7 {[%clk 0:00:11]}  e5 {[%clk 0:00:03]} 45. b4 {[%clk 0:00:11]}  e4 {[%clk 0:00:04]} 46. Kg3 {[%clk 0:00:10]}  e3 {[%clk 0:00:04]} 47. b5 {[%clk 0:00:11]}  e2 {[%clk 0:00:05]} 48. Kf2 {[%clk 0:00:11]}  Kg6 {[%clk 0:00:01]} 49. b6 {[%clk 0:00:11]}  Ra6 {[%clk 0:00:02]} 50. Kxe2 {[%clk 0:00:10]}  Ra2+ {[%clk 0:00:03]} 51. Kd3 {[%clk 0:00:10]}  Ra3+ {[%clk 0:00:03]} 52. Kc4 {[%clk 0:00:10]}  Rxa7 {[%clk 0:00:04]} 53. bxa7 {[%clk 0:00:09]}  Kh5 {[%clk 0:00:04]} 54. a8=Q {[%clk 0:00:09]}  g5 {[%clk 0:00:05]} 55. hxg5 {[%clk 0:00:09]}  Kg4 {[%clk 0:00:06]} 56. gxh6 {[%clk 0:00:08]}  Kg3 {[%clk 0:00:06]} 57. Rg7+ {[%clk 0:00:08]}  Kh2 {[%clk 0:00:07]} 58. Qf3 {[%clk 0:00:07]}  Kg1 {[%clk 0:00:08]} 59. g4 {[%clk 0:00:06]}  Kh2 {[%clk 0:00:08]} 60. g5 {[%clk 0:00:06]}  Kg1 {[%clk 0:00:09]} 61. Qe2 {[%clk 0:00:06]}  Kh1 {[%clk 0:00:10]} 62. Rd7 {[%clk 0:00:06]}  Kg1 {[%clk 0:00:10]} 63. Rd1# {[%clk 0:00:05]} 1-0


[Site "https://www.chess.com"]